[Event "Titled Tuesday Blitz July 20 2021"]
[White "Goltsev, Dmitry"]
[Black "Bartel, Michal"]
[WhiteFideId "24176710"]
[BlackFideId "1119257"]
[WhiteElo "2366"]
[BlackElo "2271"]
[Result "1/2-1/2"]
[Round "05"]
[TimeControl "180+1"]
[Date "2021.07.21"]
[WhiteClock "0:00:30"]
[BlackClock "0:01:27"]

1. e4 {[%clk 0:02:39]}  e5 {[%clk 0:02:59]} 2. Nf3 {[%clk 0:02:39]}  Nc6 {[%clk 0:02:59]} 3. Bb5 {[%clk 0:02:39]}  g6 {[%clk 0:02:59]} 4. O-O {[%clk 0:02:40]}  Bg7 {[%clk 0:02:59]} 5. c3 {[%clk 0:02:40]}  d6 {[%clk 0:02:58]} 6. d4 {[%clk 0:02:41]}  Bd7 {[%clk 0:02:59]} 7. d5 {[%clk 0:02:41]}  Nce7 {[%clk 0:02:59]} 8. Bxd7+ {[%clk 0:02:41]}  Qxd7 {[%clk 0:03:00]} 9. Nbd2 {[%clk 0:02:42]}  h6 {[%clk 0:03:00]} 10. Ne1 {[%clk 0:02:42]}  f5 {[%clk 0:03:01]} 11. f3 {[%clk 0:02:43]}  Nf6 {[%clk 0:03:01]} 12. Nd3 {[%clk 0:02:43]}  O-O {[%clk 0:03:02]} 13. Qe2 {[%clk 0:02:44]}  g5 {[%clk 0:03:02]} 14. c4 {[%clk 0:02:44]}  b6 {[%clk 0:03:02]} 15. b4 {[%clk 0:02:44]}  a5 {[%clk 0:03:03]} 16. b5 {[%clk 0:02:44]}  g4 {[%clk 0:02:57]} 17. Nf2 {[%clk 0:02:43]}  gxf3 {[%clk 0:02:53]} 18. Nxf3 {[%clk 0:02:44]}  Ng6 {[%clk 0:02:49]} 19. exf5 {[%clk 0:02:44]}  Qxf5 {[%clk 0:02:50]} 20. Be3 {[%clk 0:02:43]}  Nf4 {[%clk 0:02:46]} 21. Bxf4 {[%clk 0:02:43]}  Qxf4 {[%clk 0:02:47]} 22. Rae1 {[%clk 0:02:43]}  Rf7 {[%clk 0:02:41]} 23. g3 {[%clk 0:02:30]}  Qf5 {[%clk 0:02:37]} 24. Nh4 {[%clk 0:02:30]}  Qd7 {[%clk 0:02:34]} 25. Ne4 {[%clk 0:02:30]}  Nxe4 {[%clk 0:02:28]} 26. Qxe4 {[%clk 0:02:31]}  Raf8 {[%clk 0:02:29]} 27. Ng6 {[%clk 0:02:17]}  Rxf1+ {[%clk 0:02:28]} 28. Rxf1 {[%clk 0:02:17]}  Rxf1+ {[%clk 0:02:29]} 29. Kxf1 {[%clk 0:02:18]}  Qh3+ {[%clk 0:02:28]} 30. Kg1 {[%clk 0:02:18]}  Bf6 {[%clk 0:02:26]} 31. Qf3 {[%clk 0:01:35]}  Kg7 {[%clk 0:01:56]} 32. Nf8 {[%clk 0:01:33]}  Kxf8 {[%clk 0:01:49]} 33. Qxf6+ {[%clk 0:01:33]}  Ke8 {[%clk 0:01:49]} 34. a3 {[%clk 0:01:32]}  h5 {[%clk 0:01:47]} 35. Qg5 {[%clk 0:01:22]}  Qg4 {[%clk 0:01:45]} 36. Qh6 {[%clk 0:01:07]}  Kd7 {[%clk 0:01:34]} 37. Kg2 {[%clk 0:00:57]}  Qxc4 {[%clk 0:01:34]} 38. Qe6+ {[%clk 0:00:53]}  Kd8 {[%clk 0:01:34]} 39. Qg8+ {[%clk 0:00:47]}  Kd7 {[%clk 0:01:34]} 40. Qe6+ {[%clk 0:00:45]}  Kd8 {[%clk 0:01:35]} 41. Kh3 {[%clk 0:00:45]}  Qxb5 {[%clk 0:01:27]} 42. Kh4 {[%clk 0:00:42]}  Qe2 {[%clk 0:01:26]} 43. Qg8+ {[%clk 0:00:38]}  Kd7 {[%clk 0:01:26]} 44. Qe6+ {[%clk 0:00:30]}  Kd8 {[%clk 0:01:26]} 45. Qg8+ {[%clk 0:00:31]}  Kd7 {[%clk 0:01:26]} 46. Qe6+ {[%clk 0:00:30]}  Kd8 {[%clk 0:01:27]} 1/2-1/2


[Site "https://www.chess.com"]

[Event "Titled Tuesday Blitz July 20 2021"]
[White "GrafLermontov"]
[Black "Tristan, Leonardo"]
[BlackFideId "113816"]
[WhiteElo "2551"]
[BlackElo "2404"]
[Result "1-0"]
[Round "05"]
[TimeControl "180+1"]
[Date "2021.07.21"]
[WhiteClock "0:00:10"]
[BlackClock "0:00:06"]

1. d4 {[%clk 0:03:00]}  d5 {[%clk 0:02:59]} 2. c4 {[%clk 0:03:00]}  e6 {[%clk 0:02:59]} 3. Nc3 {[%clk 0:03:00]}  a6 {[%clk 0:03:00]} 4. cxd5 {[%clk 0:02:58]}  exd5 {[%clk 0:03:01]} 5. Nf3 {[%clk 0:02:58]}  Nf6 {[%clk 0:03:01]} 6. Bf4 {[%clk 0:02:59]}  c5 {[%clk 0:03:01]} 7. e3 {[%clk 0:02:59]}  c4 {[%clk 0:03:02]} 8. Be2 {[%clk 0:02:58]}  b5 {[%clk 0:03:02]} 9. O-O {[%clk 0:02:56]}  Bb7 {[%clk 0:03:03]} 10. Ne5 {[%clk 0:02:54]}  Be7 {[%clk 0:03:03]} 11. Bg3 {[%clk 0:02:46]}  O-O {[%clk 0:03:03]} 12. f4 {[%clk 0:02:46]}  Nbd7 {[%clk 0:03:03]} 13. Bh4 {[%clk 0:02:37]}  Re8 {[%clk 0:02:28]} 14. Bf3 {[%clk 0:02:29]}  Ne4 {[%clk 0:02:07]} 15. Bxe7 {[%clk 0:02:15]}  Qxe7 {[%clk 0:02:08]} 16. Bxe4 {[%clk 0:02:07]}  dxe4 {[%clk 0:02:08]} 17. a3 {[%clk 0:02:07]}  Nb6 {[%clk 0:01:59]} 18. Qh5 {[%clk 0:01:49]}  Rad8 {[%clk 0:01:39]} 19. f5 {[%clk 0:01:44]}  f6 {[%clk 0:01:38]} 20. Ng4 {[%clk 0:01:43]}  Qf7 {[%clk 0:01:37]} 21. Qh4 {[%clk 0:01:34]}  Bc8 {[%clk 0:01:24]} 22. Rf4 {[%clk 0:01:31]}  Nd5 {[%clk 0:01:22]} 23. Nxd5 {[%clk 0:01:26]}  Rxd5 {[%clk 0:01:14]} 24. Raf1 {[%clk 0:01:20]}  a5 {[%clk 0:01:14]} 25. Nf2 {[%clk 0:00:43]}  Bxf5 {[%clk 0:00:48]} 26. Nxe4 {[%clk 0:00:38]}  Rxe4 {[%clk 0:00:48]} 27. Rxe4 {[%clk 0:00:37]}  g5 {[%clk 0:00:48]} 28. Rg4 {[%clk 0:00:20]}  h5 {[%clk 0:00:49]} 29. Rxf5 {[%clk 0:00:12]}  Rxf5 {[%clk 0:00:48]} 30. Rg3 {[%clk 0:00:11]}  c3 {[%clk 0:00:45]} 31. bxc3 {[%clk 0:00:08]}  Qc4 {[%clk 0:00:45]} 32. h3 {[%clk 0:00:06]}  Qf7 {[%clk 0:00:06]} 33. Qe4 {[%clk 0:00:06]}  Qg6 {[%clk 0:00:06]} 34. Qe7 {[%clk 0:00:05]}  g4 {[%clk 0:00:04]} 35. hxg4 {[%clk 0:00:05]}  hxg4 {[%clk 0:00:05]} 36. e4 {[%clk 0:00:05]}  Rh5 {[%clk 0:00:05]} 37. e5 {[%clk 0:00:05]}  Qg5 {[%clk 0:00:06]} 38. Qe6+ {[%clk 0:00:04]}  Kg7 {[%clk 0:00:05]} 39. Qxf6+ {[%clk 0:00:04]}  Qxf6 {[%clk 0:00:06]} 40. exf6+ {[%clk 0:00:05]}  Kxf6 {[%clk 0:00:06]} 41. Rxg4 {[%clk 0:00:06]}  Ke6 {[%clk 0:00:07]} 42. Re4+ {[%clk 0:00:05]}  Kd5 {[%clk 0:00:03]} 43. Re5+ {[%clk 0:00:06]}  Rxe5 {[%clk 0:00:03]} 44. dxe5 {[%clk 0:00:07]}  Kxe5 {[%clk 0:00:03]} 45. Kf2 {[%clk 0:00:07]}  Ke4 {[%clk 0:00:04]} 46. Ke2 {[%clk 0:00:07]}  Kd5 {[%clk 0:00:01]} 47. Kd3 {[%clk 0:00:07]}  Kc5 {[%clk 0:00:02]} 48. g4 {[%clk 0:00:07]}  Kd5 {[%clk 0:00:02]} 49. g5 {[%clk 0:00:07]}  Ke5 {[%clk 0:00:03]} 50. g6 {[%clk 0:00:08]}  Kf6 {[%clk 0:00:03]} 51. Kd4 {[%clk 0:00:08]}  Kxg6 {[%clk 0:00:03]} 52. Kc5 {[%clk 0:00:09]}  b4 {[%clk 0:00:04]} 53. cxb4 {[%clk 0:00:09]}  a4 {[%clk 0:00:04]} 54. b5 {[%clk 0:00:09]}  Kf6 {[%clk 0:00:05]} 55. Kc6 {[%clk 0:00:09]}  Ke7 {[%clk 0:00:06]} 56. Kc7 {[%clk 0:00:09]}  Ke6 {[%clk 0:00:06]} 57. b6 {[%clk 0:00:10]} 1-0


[Site "https://www.chess.com"]

[Event "Titled Tuesday Blitz July 20 2021"]
[White "Gurevich, Dmitry"]
[Black "Ljukin, Sergei"]
[WhiteFideId "2000407"]
[BlackFideId "14102200"]
[WhiteElo "2506"]
[BlackElo "2309"]
[Result "0-1"]
[Round "05"]
[TimeControl "180+1"]
[Date "2021.07.21"]
[WhiteClock "0:00:03"]
[BlackClock "0:00:04"]

1. d4 {[%clk 0:03:00]}  d5 {[%clk 0:02:59]} 2. c4 {[%clk 0:03:00]}  c6 {[%clk 0:02:58]} 3. cxd5 {[%clk 0:03:00]}  cxd5 {[%clk 0:02:58]} 4. Bg5 {[%clk 0:03:01]}  h6 {[%clk 0:02:55]} 5. Bh4 {[%clk 0:02:59]}  Nc6 {[%clk 0:02:53]} 6. Nc3 {[%clk 0:02:58]}  Qb6 {[%clk 0:02:51]} 7. Qd2 {[%clk 0:02:52]}  e6 {[%clk 0:01:58]} 8. e3 {[%clk 0:02:51]}  Be7 {[%clk 0:01:51]} 9. Bg3 {[%clk 0:02:49]}  Nf6 {[%clk 0:01:47]} 10. Bd3 {[%clk 0:02:48]}  O-O {[%clk 0:01:47]} 11. Nge2 {[%clk 0:02:42]}  a6 {[%clk 0:01:45]} 12. O-O {[%clk 0:02:41]}  Qa5 {[%clk 0:01:40]} 13. a3 {[%clk 0:02:34]}  b5 {[%clk 0:01:40]} 14. Rfc1 {[%clk 0:02:25]}  b4 {[%clk 0:01:31]} 15. axb4 {[%clk 0:01:51]}  Qxb4 {[%clk 0:01:29]} 16. Ra4 {[%clk 0:01:45]}  Qb6 {[%clk 0:01:24]} 17. Ra2 {[%clk 0:01:38]}  Nb4 {[%clk 0:01:23]} 18. Na4 {[%clk 0:01:32]}  Qd8 {[%clk 0:01:15]} 19. Bc7 {[%clk 0:01:27]}  Qe8 {[%clk 0:01:12]} 20. Raa1 {[%clk 0:01:20]}  Nxd3 {[%clk 0:01:06]} 21. Qxd3 {[%clk 0:01:20]}  Bd7 {[%clk 0:01:06]} 22. Nb6 {[%clk 0:01:06]}  Bb5 {[%clk 0:01:02]} 23. Qd1 {[%clk 0:01:04]}  Ra7 {[%clk 0:01:02]} 24. Nc3 {[%clk 0:01:04]}  Rxc7 {[%clk 0:00:59]} 25. Ncxd5 {[%clk 0:00:49]}  Nxd5 {[%clk 0:00:52]} 26. Nxd5 {[%clk 0:00:48]}  Rxc1 {[%clk 0:00:49]} 27. Nxe7+ {[%clk 0:00:48]}  Qxe7 {[%clk 0:00:49]} 28. Rxc1 {[%clk 0:00:49]}  Qb4 {[%clk 0:00:47]} 29. Qc2 {[%clk 0:00:46]}  Bd7 {[%clk 0:00:35]} 30. Qc3 {[%clk 0:00:28]}  Rc8 {[%clk 0:00:24]} 31. Qe1 {[%clk 0:00:20]}  Qxe1+ {[%clk 0:00:22]} 32. Rxe1 {[%clk 0:00:20]}  Rc2 {[%clk 0:00:19]} 33. Rb1 {[%clk 0:00:20]}  Bb5 {[%clk 0:00:19]} 34. h3 {[%clk 0:00:18]}  f5 {[%clk 0:00:19]} 35. b4 {[%clk 0:00:11]}  g5 {[%clk 0:00:18]} 36. f3 {[%clk 0:00:09]}  Re2 {[%clk 0:00:16]} 37. Rb3 {[%clk 0:00:08]}  Kf7 {[%clk 0:00:16]} 38. Rc3 {[%clk 0:00:08]}  Rb2 {[%clk 0:00:14]} 39. Rc7+ {[%clk 0:00:06]}  Kf6 {[%clk 0:00:13]} 40. e4 {[%clk 0:00:05]}  fxe4 {[%clk 0:00:11]} 41. fxe4 {[%clk 0:00:04]}  Rxb4 {[%clk 0:00:11]} 42. e5+ {[%clk 0:00:03]}  Kf5 {[%clk 0:00:08]} 43. Rf7+ {[%clk 0:00:02]}  Ke4 {[%clk 0:00:07]} 44. Rf6 {[%clk 0:00:03]}  Bc4 {[%clk 0:00:08]} 45. Rxh6 {[%clk 0:00:02]}  Kxd4 {[%clk 0:00:05]} 46. Rg6 {[%clk 0:00:03]}  Kxe5 {[%clk 0:00:05]} 47. Rxg5+ {[%clk 0:00:03]}  Kf6 {[%clk 0:00:05]} 48. Rg8 {[%clk 0:00:03]}  Bd5 {[%clk 0:00:05]} 49. Rf8+ {[%clk 0:00:04]}  Kg7 {[%clk 0:00:04]} 50. Rd8 {[%clk 0:00:03]}  Rb2 {[%clk 0:00:04]} 0-1


[Site "https://www.chess.com"]

[Event "Titled Tuesday Blitz July 20 2021"]
[White "Hamley, Ryan"]
[Black "FGHSMN"]
[WhiteFideId "30959497"]
[WhiteElo "2393"]
[BlackElo "2524"]
[Result "0-1"]
[Round "05"]
[TimeControl "180+1"]
[Date "2021.07.21"]
[WhiteClock "0:00:03"]
[BlackClock "0:00:06"]

1. d4 {[%clk 0:03:00]}  Nf6 {[%clk 0:02:57]} 2. Nf3 {[%clk 0:02:53]}  e6 {[%clk 0:02:55]} 3. Bf4 {[%clk 0:02:53]}  c5 {[%clk 0:02:54]} 4. e3 {[%clk 0:02:53]}  Nc6 {[%clk 0:02:53]} 5. Nbd2 {[%clk 0:02:53]}  d5 {[%clk 0:02:51]} 6. c3 {[%clk 0:02:53]}  Bd6 {[%clk 0:02:50]} 7. Bg3 {[%clk 0:02:53]}  O-O {[%clk 0:02:48]} 8. Bd3 {[%clk 0:02:53]}  Qe7 {[%clk 0:02:43]} 9. O-O {[%clk 0:02:50]}  e5 {[%clk 0:02:40]} 10. dxe5 {[%clk 0:02:46]}  Nxe5 {[%clk 0:02:41]} 11. Nxe5 {[%clk 0:02:44]}  Bxe5 {[%clk 0:02:42]} 12. Bxe5 {[%clk 0:02:42]}  Qxe5 {[%clk 0:02:43]} 13. Nf3 {[%clk 0:02:43]}  Qe7 {[%clk 0:02:40]} 14. c4 {[%clk 0:02:41]}  dxc4 {[%clk 0:02:32]} 15. Bxc4 {[%clk 0:02:41]}  Bg4 {[%clk 0:02:30]} 16. Be2 {[%clk 0:02:35]}  Rfd8 {[%clk 0:02:28]} 17. Qc2 {[%clk 0:02:36]}  Rd7 {[%clk 0:02:21]} 18. Rac1 {[%clk 0:02:32]}  b6 {[%clk 0:02:18]} 19. h3 {[%clk 0:02:27]}  Bh5 {[%clk 0:02:13]} 20. a4 {[%clk 0:02:14]}  Rad8 {[%clk 0:02:12]} 21. a5 {[%clk 0:02:09]}  Ne4 {[%clk 0:02:11]} 22. axb6 {[%clk 0:02:07]}  axb6 {[%clk 0:02:11]} 23. Rfd1 {[%clk 0:02:06]}  Nd2 {[%clk 0:02:04]} 24. Rxd2 {[%clk 0:01:55]}  Rxd2 {[%clk 0:02:02]} 25. Nxd2 {[%clk 0:01:52]}  Bxe2 {[%clk 0:02:02]} 26. Nc4 {[%clk 0:01:52]}  Bd3 {[%clk 0:02:00]} 27. Qb3 {[%clk 0:01:49]}  Be4 {[%clk 0:01:48]} 28. Qxb6 {[%clk 0:01:21]}  Qg5 {[%clk 0:01:45]} 29. g3 {[%clk 0:01:19]}  Qd5 {[%clk 0:01:33]} 30. Kh2 {[%clk 0:00:56]}  h5 {[%clk 0:01:24]} 31. Qc7 {[%clk 0:00:55]}  Re8 {[%clk 0:00:59]} 32. Nd6 {[%clk 0:00:33]}  Ra8 {[%clk 0:00:20]} 33. Nxe4 {[%clk 0:00:32]}  Qxe4 {[%clk 0:00:19]} 34. Qxc5 {[%clk 0:00:22]}  Qf3 {[%clk 0:00:20]} 35. Rf1 {[%clk 0:00:16]}  h4 {[%clk 0:00:19]} 36. Qg5 {[%clk 0:00:16]}  hxg3+ {[%clk 0:00:14]} 37. Qxg3 {[%clk 0:00:17]}  Qe2 {[%clk 0:00:14]} 38. Rg1 {[%clk 0:00:17]}  Qxb2 {[%clk 0:00:12]} 39. e4 {[%clk 0:00:14]}  Re8 {[%clk 0:00:12]} 40. Re1 {[%clk 0:00:08]}  g6 {[%clk 0:00:12]} 41. Kg2 {[%clk 0:00:08]}  Qd4 {[%clk 0:00:12]} 42. Qf3 {[%clk 0:00:08]}  Qe5 {[%clk 0:00:11]} 43. Re3 {[%clk 0:00:08]}  Rd8 {[%clk 0:00:11]} 44. Qg3 {[%clk 0:00:08]}  Qe6 {[%clk 0:00:10]} 45. h4 {[%clk 0:00:08]}  Kh7 {[%clk 0:00:10]} 46. Qg5 {[%clk 0:00:08]}  Rd4 {[%clk 0:00:09]} 47. Qf4 {[%clk 0:00:08]}  Ra4 {[%clk 0:00:08]} 48. f3 {[%clk 0:00:06]}  Ra5 {[%clk 0:00:08]} 49. Qg4 {[%clk 0:00:05]}  Ra2+ {[%clk 0:00:08]} 50. Kg3 {[%clk 0:00:05]}  Qd6+ {[%clk 0:00:08]} 51. f4 {[%clk 0:00:03]}  Qd2 {[%clk 0:00:07]} 52. Qf3 {[%clk 0:00:02]}  Qh2+ {[%clk 0:00:06]} 53. Kg4 {[%clk 0:00:03]}  Rg2+ {[%clk 0:00:06]} 0-1


[Site "https://www.chess.com"]

[Event "Titled Tuesday Blitz July 20 2021"]
[White "Hryshchenko, Kamila"]
[Black "Gadimbayli, Abdulla"]
[WhiteFideId "14147491"]
[BlackFideId "13404938"]
[WhiteElo "1966"]
[BlackElo "2320"]
[Result "1/2-1/2"]
[Round "05"]
[TimeControl "180+1"]
[Date "2021.07.21"]
[WhiteClock "0:02:13"]
[BlackClock "0:02:42"]

1. e4 {[%clk 0:02:51]}  e5 {[%clk 0:02:59]} 2. Nf3 {[%clk 0:02:51]}  d5 {[%clk 0:03:00]} 3. Nxe5 {[%clk 0:02:47]}  Bd6 {[%clk 0:02:59]} 4. d4 {[%clk 0:02:46]}  dxe4 {[%clk 0:02:59]} 5. Bc4 {[%clk 0:02:43]}  Bxe5 {[%clk 0:03:00]} 6. Qh5 {[%clk 0:02:42]}  Qe7 {[%clk 0:02:58]} 7. Qxe5 {[%clk 0:02:39]}  Qxe5 {[%clk 0:02:58]} 8. dxe5 {[%clk 0:02:40]}  Nc6 {[%clk 0:02:59]} 9. Nc3 {[%clk 0:02:36]}  Nxe5 {[%clk 0:02:54]} 10. Bb3 {[%clk 0:02:34]}  Nf6 {[%clk 0:02:41]} 11. Bf4 {[%clk 0:02:32]}  Nc6 {[%clk 0:02:41]} 12. Nb5 {[%clk 0:02:28]}  O-O {[%clk 0:02:41]} 13. Nxc7 {[%clk 0:02:25]}  Rb8 {[%clk 0:02:42]} 14. Nb5 {[%clk 0:02:24]}  Ra8 {[%clk 0:02:42]} 15. Nc7 {[%clk 0:02:13]}  Rb8 {[%clk 0:02:42]} 16. Nb5 {[%clk 0:02:13]}  Ra8 {[%clk 0:02:42]} 17. Nc7 {[%clk 0:02:13]} 1/2-1/2


[Site "https://www.chess.com"]

[Event "Titled Tuesday Blitz July 20 2021"]
[White "Ibrahimli, Murad"]
[Black "Siniauski, Artsiom"]
[WhiteFideId "13410229"]
[BlackFideId "13512269"]
[WhiteElo "2109"]
[BlackElo "2210"]
[Result "1/2-1/2"]
[Round "05"]
[TimeControl "180+1"]
[Date "2021.07.20"]
[WhiteClock "0:00:18"]
[BlackClock "0:00:03"]

1. Nf3 {[%clk 0:03:00]}  Nf6 {[%clk 0:02:56]} 2. g3 {[%clk 0:02:59]}  b6 {[%clk 0:02:57]} 3. Bg2 {[%clk 0:02:59]}  Bb7 {[%clk 0:02:57]} 4. O-O {[%clk 0:03:00]}  g6 {[%clk 0:02:58]} 5. c4 {[%clk 0:03:00]}  Bg7 {[%clk 0:02:59]} 6. Nc3 {[%clk 0:03:00]}  O-O {[%clk 0:02:59]} 7. d3 {[%clk 0:02:57]}  d6 {[%clk 0:02:58]} 8. e4 {[%clk 0:02:57]}  Nbd7 {[%clk 0:02:58]} 9. Re1 {[%clk 0:02:52]}  e5 {[%clk 0:02:58]} 10. d4 {[%clk 0:02:48]}  exd4 {[%clk 0:02:52]} 11. Nxd4 {[%clk 0:02:49]}  Re8 {[%clk 0:02:53]} 12. f3 {[%clk 0:02:49]}  a5 {[%clk 0:02:31]} 13. Be3 {[%clk 0:02:46]}  Nc5 {[%clk 0:02:30]} 14. Qd2 {[%clk 0:02:46]}  Nfd7 {[%clk 0:02:29]} 15. b3 {[%clk 0:02:38]}  Ne5 {[%clk 0:02:25]} 16. Rad1 {[%clk 0:02:36]}  a4 {[%clk 0:02:21]} 17. Qc2 {[%clk 0:02:31]}  axb3 {[%clk 0:02:20]} 18. axb3 {[%clk 0:02:32]}  Ra3 {[%clk 0:02:11]} 19. Bc1 {[%clk 0:02:12]}  Ra1 {[%clk 0:01:41]} 20. Bb2 {[%clk 0:01:52]}  Ned3 {[%clk 0:01:21]} 21. Rxa1 {[%clk 0:01:41]}  Bxd4+ {[%clk 0:01:20]} 22. Kf1 {[%clk 0:01:38]}  Nxb2 {[%clk 0:01:11]} 23. Qxb2 {[%clk 0:01:37]}  Qf6 {[%clk 0:01:08]} 24. Rac1 {[%clk 0:00:52]}  Nd3 {[%clk 0:00:54]} 25. Qd2 {[%clk 0:00:51]}  Nxc1 {[%clk 0:00:37]} 26. Rxc1 {[%clk 0:00:47]}  Bxe4 {[%clk 0:00:34]} 27. Nxe4 {[%clk 0:00:25]}  Rxe4 {[%clk 0:00:35]} 28. Rd1 {[%clk 0:00:26]}  Bc3 {[%clk 0:00:19]} 29. Qc2 {[%clk 0:00:18]}  Re8 {[%clk 0:00:19]} 30. f4 {[%clk 0:00:11]}  Bd4 {[%clk 0:00:13]} 31. Bf3 {[%clk 0:00:08]}  c5 {[%clk 0:00:13]} 32. Kg2 {[%clk 0:00:08]}  Kg7 {[%clk 0:00:13]} 33. Qd2 {[%clk 0:00:08]}  h5 {[%clk 0:00:12]} 34. h4 {[%clk 0:00:07]}  Re3 {[%clk 0:00:11]} 35. Re1 {[%clk 0:00:06]}  Qe6 {[%clk 0:00:07]} 36. Rxe3 {[%clk 0:00:04]}  Bxe3 {[%clk 0:00:07]} 37. Qe2 {[%clk 0:00:01]}  Kf6 {[%clk 0:00:07]} 38. Bd5 {[%clk 0:00:01]}  Qe7 {[%clk 0:00:06]} 39. Kf3 {[%clk 0:00:02]}  Bd4 {[%clk 0:00:04]} 40. Qxe7+ {[%clk 0:00:03]}  Kxe7 {[%clk 0:00:04]} 41. f5 {[%clk 0:00:04]}  Kf6 {[%clk 0:00:04]} 42. fxg6 {[%clk 0:00:04]}  fxg6 {[%clk 0:00:05]} 43. g4 {[%clk 0:00:05]}  Bc3 {[%clk 0:00:03]} 44. g5+ {[%clk 0:00:05]}  Kf5 {[%clk 0:00:02]} 45. Be4+ {[%clk 0:00:05]}  Ke5 {[%clk 0:00:02]} 46. Bxg6 {[%clk 0:00:06]}  Be1 {[%clk 0:00:02]} 47. Bxh5 {[%clk 0:00:07]}  Bxh4 {[%clk 0:00:02]} 48. Kg4 {[%clk 0:00:07]}  Be1 {[%clk 0:00:01]} 49. Bf7 {[%clk 0:00:08]}  Bd2 {[%clk 0:00:01]} 50. Bd5 {[%clk 0:00:08]}  Kd4 {[%clk 0:00:01]} 51. g6 {[%clk 0:00:08]}  Bh6 {[%clk 0:00:01]} 52. Bc6 {[%clk 0:00:09]}  Bf8 {[%clk 0:00:01]} 53. Ba4 {[%clk 0:00:09]}  Kc3 {[%clk 0:00:02]} 54. Kf5 {[%clk 0:00:09]}  Kb4 {[%clk 0:00:02]} 55. Ke6 {[%clk 0:00:10]}  b5 {[%clk 0:00:03]} 56. Bxb5 {[%clk 0:00:10]}  Kxb3 {[%clk 0:00:03]} 57. Kf7 {[%clk 0:00:10]}  Bh6 {[%clk 0:00:03]} 58. Ba6 {[%clk 0:00:11]}  Kc3 {[%clk 0:00:02]} 59. Ke6 {[%clk 0:00:12]}  Kd4 {[%clk 0:00:01]} 60. Kxd6 {[%clk 0:00:12]}  Bg7 {[%clk 0:00:01]} 61. Ke6 {[%clk 0:00:12]}  Bh6 {[%clk 0:00:01]} 62. Kf7 {[%clk 0:00:13]}  Ke5 {[%clk 0:00:01]} 63. g7 {[%clk 0:00:14]}  Bxg7 {[%clk 0:00:01]} 64. Kxg7 {[%clk 0:00:14]}  Kd6 {[%clk 0:00:02]} 65. Kf7 {[%clk 0:00:15]}  Kc6 {[%clk 0:00:02]} 66. Ke6 {[%clk 0:00:16]}  Kb6 {[%clk 0:00:03]} 67. Bb5 {[%clk 0:00:16]}  Ka5 {[%clk 0:00:03]} 68. Kd5 {[%clk 0:00:16]}  Kb4 {[%clk 0:00:04]} 69. Kd6 {[%clk 0:00:17]}  Ka5 {[%clk 0:00:03]} 70. Kxc5 {[%clk 0:00:18]} 1/2-1/2


[Site "https://www.chess.com"]

[Event "Titled Tuesday Blitz July 20 2021"]
[White "Ivanov, Mike"]
[Black "Stojanovski, Sandi"]
[WhiteFideId "2613158"]
[BlackFideId "1403249"]
[WhiteElo "2197"]
[BlackElo "2374"]
[Result "1-0"]
[Round "05"]
[TimeControl "180+1"]
[Date "2021.07.21"]
[WhiteClock "0:00:07"]
[BlackClock "0:00:05"]

1. e4 {[%clk 0:03:00]}  Nf6 {[%clk 0:03:00]} 2. e5 {[%clk 0:03:00]}  Nd5 {[%clk 0:03:01]} 3. c4 {[%clk 0:03:01]}  Nb6 {[%clk 0:03:01]} 4. d4 {[%clk 0:03:00]}  d6 {[%clk 0:03:01]} 5. Nf3 {[%clk 0:02:59]}  Bg4 {[%clk 0:02:52]} 6. exd6 {[%clk 0:02:50]}  exd6 {[%clk 0:02:44]} 7. b3 {[%clk 0:02:41]}  Be7 {[%clk 0:02:40]} 8. Be3 {[%clk 0:02:33]}  O-O {[%clk 0:02:40]} 9. Be2 {[%clk 0:02:33]}  Bf6 {[%clk 0:02:38]} 10. Nc3 {[%clk 0:02:12]}  Nc6 {[%clk 0:02:29]} 11. O-O {[%clk 0:02:03]}  Re8 {[%clk 0:02:28]} 12. Rc1 {[%clk 0:01:53]}  h6 {[%clk 0:02:28]} 13. h3 {[%clk 0:01:45]}  Bh5 {[%clk 0:02:23]} 14. d5 {[%clk 0:01:38]}  Ne7 {[%clk 0:02:02]} 15. g4 {[%clk 0:01:07]}  Bg6 {[%clk 0:02:00]} 16. Nd4 {[%clk 0:01:07]}  c6 {[%clk 0:01:36]} 17. dxc6 {[%clk 0:01:01]}  Nxc6 {[%clk 0:01:33]} 18. Nxc6 {[%clk 0:00:53]}  bxc6 {[%clk 0:01:32]} 19. Qd2 {[%clk 0:00:53]}  d5 {[%clk 0:01:27]} 20. cxd5 {[%clk 0:00:39]}  Nxd5 {[%clk 0:01:13]} 21. Nxd5 {[%clk 0:00:35]}  cxd5 {[%clk 0:01:14]} 22. Bf3 {[%clk 0:00:32]}  d4 {[%clk 0:00:45]} 23. Bxa8 {[%clk 0:00:30]}  Qxa8 {[%clk 0:00:37]} 24. Bxd4 {[%clk 0:00:24]}  Rd8 {[%clk 0:00:28]} 25. Rc4 {[%clk 0:00:24]}  Qf3 {[%clk 0:00:16]} 26. Qe3 {[%clk 0:00:20]}  Qxe3 {[%clk 0:00:13]} 27. Bxe3 {[%clk 0:00:20]}  Bd3 {[%clk 0:00:13]} 28. Rd1 {[%clk 0:00:16]}  Bxc4 {[%clk 0:00:13]} 29. Rxd8+ {[%clk 0:00:17]}  Bxd8 {[%clk 0:00:13]} 30. bxc4 {[%clk 0:00:18]}  a6 {[%clk 0:00:13]} 31. c5 {[%clk 0:00:15]}  Kf8 {[%clk 0:00:14]} 32. c6 {[%clk 0:00:13]}  Bc7 {[%clk 0:00:14]} 33. Bc5+ {[%clk 0:00:10]}  Ke8 {[%clk 0:00:13]} 34. Kg2 {[%clk 0:00:10]}  f5 {[%clk 0:00:11]} 35. gxf5 {[%clk 0:00:09]}  Kf7 {[%clk 0:00:12]} 36. Kf3 {[%clk 0:00:09]}  Kf6 {[%clk 0:00:11]} 37. Ke4 {[%clk 0:00:09]}  h5 {[%clk 0:00:10]} 38. f3 {[%clk 0:00:07]}  Bg3 {[%clk 0:00:08]} 39. Kd5 {[%clk 0:00:06]}  Kf7 {[%clk 0:00:07]} 40. Bd6 {[%clk 0:00:06]}  Bxd6 {[%clk 0:00:04]} 41. Kxd6 {[%clk 0:00:06]}  Ke8 {[%clk 0:00:05]} 42. c7 {[%clk 0:00:07]} 1-0


[Site "https://www.chess.com"]

[Event "Titled Tuesday Blitz July 20 2021"]
[White "Jarovinsky, Alexey"]
[Black "Sarana, Alexey"]
[WhiteFideId "14115131"]
[BlackFideId "24133795"]
[WhiteElo "2446"]
[BlackElo "2646"]
[Result "0-1"]
[Round "05"]
[TimeControl "180+1"]
[Date "2021.07.20"]
[WhiteClock "0:00:09"]
[BlackClock "0:01:24"]

1. Nc3 {[%clk 0:03:00]}  e5 {[%clk 0:02:57]} 2. Nf3 {[%clk 0:03:00]}  Nc6 {[%clk 0:02:57]} 3. d4 {[%clk 0:03:00]}  d6 {[%clk 0:02:53]} 4. dxe5 {[%clk 0:02:59]}  Nxe5 {[%clk 0:02:53]} 5. Nxe5 {[%clk 0:02:58]}  dxe5 {[%clk 0:02:54]} 6. Qxd8+ {[%clk 0:02:58]}  Kxd8 {[%clk 0:02:55]} 7. f4 {[%clk 0:02:58]}  Bb4 {[%clk 0:02:41]} 8. fxe5 {[%clk 0:02:54]}  Bxc3+ {[%clk 0:02:41]} 9. bxc3 {[%clk 0:02:54]}  Ne7 {[%clk 0:02:42]} 10. Bg5 {[%clk 0:02:41]}  Be6 {[%clk 0:02:39]} 11. O-O-O {[%clk 0:02:38]}  Ke8 {[%clk 0:02:40]} 12. e3 {[%clk 0:02:26]}  Nd5 {[%clk 0:02:31]} 13. Bc4 {[%clk 0:01:49]}  Nxc3 {[%clk 0:02:08]} 14. Bxe6 {[%clk 0:01:32]}  Nxd1 {[%clk 0:02:08]} 15. Bd5 {[%clk 0:01:31]}  c6 {[%clk 0:02:07]} 16. Bb3 {[%clk 0:01:11]}  Nc3 {[%clk 0:02:06]} 17. Rf1 {[%clk 0:01:10]}  Rf8 {[%clk 0:02:04]} 18. Kb2 {[%clk 0:00:52]}  Ne4 {[%clk 0:01:48]} 19. Bh4 {[%clk 0:00:51]}  g5 {[%clk 0:01:42]} 20. Be1 {[%clk 0:00:50]}  Rd8 {[%clk 0:01:42]} 21. Bb4 {[%clk 0:00:45]}  c5 {[%clk 0:01:42]} 22. Ba3 {[%clk 0:00:32]}  b5 {[%clk 0:01:35]} 23. c3 {[%clk 0:00:30]}  Rd2+ {[%clk 0:01:33]} 24. Kc1 {[%clk 0:00:26]}  Rxg2 {[%clk 0:01:31]} 25. Bc2 {[%clk 0:00:26]}  Nd2 {[%clk 0:01:23]} 26. Rf6 {[%clk 0:00:20]}  b4 {[%clk 0:01:24]} 27. cxb4 {[%clk 0:00:18]}  Nc4 {[%clk 0:01:24]} 28. Bb2 {[%clk 0:00:09]}  Rg1+ {[%clk 0:01:24]} 0-1


[Site "https://www.chess.com"]